bitfinex/quotes_BTCUSD_20250218
["timestamp","ask_amount","ask_price","bid_price","bid_amount"]
[1739871327281,0.156553,95814.0,95813.0,0.00178164]
[1739871328086,1.31947,95814.0,95813.0,0.00178164]
[1739871328274,0.156553,95814.0,95813.0,0.00178164]
[1739871328503,2.011559,95814.0,95813.0,0.00078164]
[1739871328710,0.664694,95814.0,95813.0,0.00078164]
[1739871328915,0.654078,95814.0,95813.0,0.00078164]
[1739871329317,0.66912,95814.0,95813.0,0.00078164]
[1739871329434,0.525385,95814.0,95813.0,0.00178164]
[1739871329652,0.156553,95814.0,95813.0,0.00178164]
[1739871329857,0.17290926,95814.0,95813.0,0.00178164]
[1739871330063,0.30227926,95814.0,95813.0,0.00178164]
[1739871331659,0.17290926,95814.0,95813.0,0.00178164]
[1739871332576,0.01635626,95814.0,95813.0,0.23973564]
[1739871332784,0.02080334,95835.0,95813.0,0.25859291]
[1739871332968,0.15,95824.0,95814.0,0.10250365]
[1739871333156,0.15,95824.0,95814.0,0.25905565]
[1739871333368,0.15,95824.0,95814.0,0.10250365]
[1739871333543,0.15,95822.0,95814.0,0.10250365]
[1739871334793,0.306535,95825.0,95814.0,0.10250365]
[1739871335000,0.15,95825.0,95814.0,0.10250365]
[1739871335213,0.156536,95824.0,95814.0,0.10350365]
[1739871335451,0.15,95825.0,95814.0,0.10250365]
[1739871335670,0.306535,95825.0,95814.0,0.10250365]
[1739871335937,0.156537,95824.0,95814.0,0.10250365]
[1739871336135,0.15,95823.0,95813.0,0.13108164]
[1739871336319,0.156545,95820.0,95813.0,0.13108164]
[1739871336527,0.15,95823.0,95813.0,0.13108164]
[1739871336733,1.205554,95822.0,95813.0,0.13108164]
[1739871337162,0.156553,95814.0,95813.0,0.04968164]
[1739871337406,0.156551,95816.0,95813.0,0.04968164]
[1739871337667,0.28196765,95823.0,95813.0,0.04968164]
[1739871337916,0.156552,95815.0,95813.0,0.04968164]
[1739871338155,0.156553,95814.0,95813.0,0.04968164]
[1739871338396,0.156552,95815.0,95813.0,0.04968164]
[1739871338508,0.208727,95819.0,95813.0,0.04968164]
[1739871338740,0.156552,95815.0,95813.0,0.04968164]
[1739871339394,0.156553,95814.0,95813.0,0.04968164]
[1739871339926,0.15655,95816.0,95813.0,0.04968164]
[1739871340077,0.156551,95815.0,95813.0,0.04968164]
[1739871340455,0.01635612,95816.0,95813.0,0.05068164]
[1739871340656,0.156551,95815.0,95813.0,0.04968164]
[1739871340847,0.01635612,95816.0,95813.0,0.04968164]
[1739871341069,0.01635612,95816.0,95813.0,0.05068164]
[1739871341514,0.208709,95827.0,95813.0,0.05168164]
[1739871341688,0.156545,95819.0,95813.0,0.05168164]
[1739871341890,0.395529,95818.0,95813.0,0.05168164]
[1739871342115,0.156548,95817.0,95813.0,0.05068164]
[1739871342314,0.156548,95817.0,95813.0,0.04968164]
[1739871342526,0.208727,95819.0,95813.0,0.04968164]
[1739871342723,0.156551,95815.0,95813.0,0.04968164]
[1739871343711,0.20873,95818.0,95813.0,0.04968164]
[1739871344076,0.156553,95814.0,95813.0,0.05068164]
[1739871344252,0.208732,95817.0,95813.0,0.05068164]
[1739871344398,0.156552,95815.0,95813.0,0.05068164]
[1739871345422,0.156553,95814.0,95813.0,0.04968164]
[1739871345847,0.156552,95815.0,95813.0,0.04968164]
[1739871346452,0.156552,95815.0,95813.0,0.05068164]
[1739871346678,0.00519621,95814.0,95813.0,0.05068164]
[1739871347090,0.16174921,95814.0,95813.0,0.05068164]
[1739871348092,0.53015521,95814.0,95813.0,0.05068164]
[1739871348443,1.06001121,95814.0,95813.0,0.20178164]
[1739871348644,2.04449521,95814.0,95813.0,0.20078164]
[1739871348848,2.04449521,95814.0,95813.0,0.20178164]
[1739871348849,2.08153821,95814.0,95813.0,0.20178164]
[1739871349023,2.05547621,95814.0,95813.0,0.20278164]
[1739871349236,2.0718323,95814.0,95813.0,0.20178164]
[1739871349409,2.0718323,95814.0,95813.0,0.20278164]
[1739871349612,2.0718323,95814.0,95813.0,0.20178164]
[1739871349806,2.0559183,95814.0,95813.0,0.20178164]
[1739871350495,1.8148743,95814.0,95813.0,0.20178164]
[1739871351466,1.0079113,95814.0,95813.0,0.20178164]
[1739871351690,0.1781053,95814.0,95813.0,0.20078164]
[1739871351842,3.8198013,95814.0,95813.0,0.20078164]
[1739871352044,3.6650373,95814.0,95813.0,0.20178164]
[1739871352246,3.1438563,95814.0,95813.0,0.20178164]
[1739871353149,2.2229103,95814.0,95813.0,0.20178164]
[1739871353392,2.1496643,95814.0,95813.0,0.20178164]
[1739871354568,2.13330821,95814.0,95813.0,0.20178164]
[1739871354800,2.13330821,95814.0,95813.0,0.20078164]
[1739871355030,2.13330821,95814.0,95813.0,0.20178164]
[1739871355415,2.13330821,95814.0,95813.0,0.20078164]
[1739871355650,2.13330821,95814.0,95813.0,0.20178164]
[1739871356001,2.13330821,95814.0,95813.0,0.20078164]
[1739871356456,2.13330821,95814.0,95813.0,0.20178164]
[1739871359099,2.1496647,95814.0,95813.0,0.20178164]
[1739871360899,1.2248837,95814.0,95813.0,0.20178164]
[1739871361166,1.1203267,95814.0,95813.0,0.20178164]
[1739871362131,1.1203267,95814.0,95813.0,0.20078164]
[1739871362327,1.1203267,95814.0,95813.0,0.20178164]
[1739871363200,1.26766121,95814.0,95813.0,0.20178164]
[1739871363663,1.26766121,95814.0,95813.0,0.20078164]
[1739871364072,1.26766121,95814.0,95813.0,0.20178164]
[1739871364248,1.41766121,95814.0,95813.0,0.20178164]
[1739871365190,1.41766121,95814.0,95813.0,0.20078164]
[1739871365591,1.41766121,95814.0,95813.0,0.20178164]
[1739871365793,1.26766121,95814.0,95813.0,0.20078164]
[1739871365991,1.52016486,95814.0,95813.0,0.20078164]
[1739871366438,1.52016486,95814.0,95813.0,0.16939859]
[1739871367235,1.53652309,95814.0,95813.0,0.16939859]
[1739871368033,1.54252309,95814.0,95813.0,0.17039859]
[1739871368443,1.53652309,95814.0,95813.0,0.17039859]
[1739871368645,1.54252309,95814.0,95813.0,0.17039859]
[1739871369265,1.54252309,95814.0,95813.0,0.17073899]
[1739871369487,1.53652309,95814.0,95813.0,0.16973899]
[1739871369832,1.54252309,95814.0,95813.0,0.17073899]
[1739871372092,1.53652309,95814.0,95813.0,0.16973899]
[1739871372309,1.54252309,95814.0,95813.0,0.17073899]
[1739871372690,1.54252309,95814.0,95813.0,0.16973899]
[1739871372894,1.53652309,95814.0,95813.0,0.16973899]
[1739871373033,1.54252309,95814.0,95813.0,0.17073899]
[1739871373241,1.54252309,95814.0,95813.0,0.14942066]
[1739871373478,1.54252309,95814.0,95813.0,0.14842066]
[1739871373683,1.53652309,95814.0,95813.0,0.14842066]
[1739871373901,1.54252309,95814.0,95813.0,0.14942066]
[1739871374858,1.52616486,95814.0,95813.0,0.10499102]
[1739871375064,1.55091019,95814.0,95813.0,0.00406779]
[1739871375314,1.58062663,95814.0,95813.0,0.00406779]
[1739871375516,1.58662663,95814.0,95813.0,7.9e-07]
[1739871375722,0.51231463,95814.0,95813.0,7.9e-07]
[1739871375916,8.760612,95813.0,95812.0,0.0003406]
[1739871376156,8.32574609,95813.0,95812.0,0.0003406]
[1739871376351,7.08008742,95813.0,95786.0,0.0758]
[1739871376548,0.156597,95787.0,95786.0,0.07584599]
[1739871376747,2.26225994,95787.0,95786.0,0.07584599]
[1739871376954,2.683038,95788.0,95786.0,0.07584599]
[1739871377181,0.208793,95789.0,95786.0,0.07584599]
[1739871377182,1.512351,95787.0,95786.0,0.07584599]
[1739871377323,0.797726,95787.0,95786.0,0.07584599]
[1739871377524,0.803803,95787.0,95786.0,0.07584599]
[1739871377938,0.82016358,95787.0,95786.0,0.07584599]
[1739871378227,0.54365913,95787.0,95786.0,0.07584599]
[1739871378425,0.70025613,95787.0,95786.0,0.07584599]
[1739871378761,0.70125613,95787.0,95786.0,0.07584599]
[1739871379082,0.71417083,95787.0,95786.0,0.07584599]
[1739871379278,0.71317083,95787.0,95786.0,4.599e-05]
[1739871379599,0.71417083,95787.0,95786.0,4.599e-05]
[1739871380228,0.86417083,95787.0,95786.0,4.599e-05]
[1739871381385,0.86417083,95787.0,95786.0,0.00038659]
[1739871381386,0.86837229,95787.0,95786.0,0.00038659]
[1739871381610,0.86854259,95787.0,95786.0,0.00038659]
[1739871381786,0.98204624,95787.0,95786.0,0.00138659]
[1739871382196,0.97904624,95787.0,95786.0,0.00038659]
[1739871382632,0.98604624,95787.0,95786.0,0.00138659]
[1739871384061,0.86718201,95787.0,95786.0,0.00138659]
[1739871385055,0.85218201,95787.0,95786.0,0.00038659]
[1739871385416,0.86018201,95787.0,95786.0,0.00038659]
[1739871385859,0.85518201,95787.0,95786.0,0.00038659]
[1739871386298,0.85618201,95787.0,95786.0,0.00038659]
[1739871386507,0.85918201,95787.0,95786.0,0.00038659]
[1739871387073,0.87554404,95787.0,95786.0,0.00038659]
[1739871387637,0.87154404,95787.0,95786.0,0.00038659]
[1739871387923,0.87254404,95787.0,95786.0,0.00038659]
[1739871388136,0.87554404,95787.0,95786.0,0.00038659]
[1739871388296,0.86854404,95787.0,95786.0,0.00038659]
[1739871388698,0.87554404,95787.0,95786.0,0.00038659]
[1739871389548,0.74938504,95787.0,95786.0,0.00038659]
[1739871389750,3.50978504,95787.0,95786.0,0.00038659]
[1739871389961,4.54580349,95787.0,95786.0,0.00038659]
[1739871390239,2.26210049,95787.0,95786.0,0.00038659]
[1739871390535,0.49378049,95787.0,95786.0,0.04798659]
[1739871390792,0.04164849,95787.0,95786.0,0.04798659]
[1739871391043,0.04164849,95787.0,95786.0,0.12548659]
[1739871391515,0.03464849,95787.0,95786.0,0.12548659]
[1739871391715,0.03764849,95787.0,95786.0,0.12548659]
[1739871392128,0.03244703,95787.0,95786.0,0.12548659]
[1739871392334,0.02944703,95787.0,95786.0,0.12548659]
[1739871392540,0.03144703,95787.0,95786.0,0.12548659]
[1739871392787,0.015085,95787.0,95786.0,0.12548659]
[1739871393614,0.0021703,95787.0,95786.0,0.22799024]
[1739871393823,0.0021703,95787.0,95786.0,0.38458924]
[1739871394176,0.0001703,95787.0,95786.0,0.38458924]
[1739871394382,0.0001703,95787.0,95786.0,0.22799024]
[1739871395066,0.0001703,95787.0,95786.0,0.23199024]
[1739871395268,0.0001703,95787.0,95786.0,0.39258924]
[1739871395695,0.0001703,95787.0,95786.0,0.44023993]
[1739871395854,0.0001703,95787.0,95786.0,0.60814093]
[1739871396055,0.0001703,95787.0,95786.0,0.56449024]
[1739871396275,0.0001703,95787.0,95786.0,0.56049024]
[1739871397369,0.0001703,95787.0,95786.0,0.55649024]
[1739871397814,0.0001703,95787.0,95786.0,0.56349024]
[1739871398019,0.0001703,95787.0,95786.0,0.55949024]
[1739871398389,0.0001703,95787.0,95786.0,0.45798659]
[1739871398590,0.0001703,95787.0,95786.0,0.45698659]
[1739871398976,0.0001703,95787.0,95786.0,0.46098659]
[1739871399195,0.1567673,95787.0,95786.0,0.45398659]
[1739871399570,0.1567673,95787.0,95786.0,0.45698659]
[1739871400142,1.2638123,95787.0,95786.0,0.45698659]
[1739871400573,1.9688613,95787.0,95786.0,0.45998659]
[1739871400773,2.5237883,95787.0,95786.0,0.45698659]
[1739871400971,2.2032523,95787.0,95786.0,0.45698659]
[1739871401199,0.7623873,95787.0,95786.0,0.45498659]
[1739871401400,0.5707303,95787.0,95786.0,0.45398659]
[1739871401741,0.5707303,95787.0,95786.0,0.45598659]
[1739871401742,0.4302873,95787.0,95786.0,0.45598659]
[1739871401946,0.4302873,95787.0,95786.0,0.12748659]
[1739871402132,0.4302873,95787.0,95786.0,0.12548659]
[1739871402328,0.4302873,95787.0,95786.0,0.12648659]
[1739871407855,0.0001703,95787.0,95786.0,0.12648659]
[1739871408051,0.35303506,95787.0,95786.0,0.12648659]
[1739871408275,0.58947006,95787.0,95786.0,0.12648659]
[1739871412074,0.5731093,95787.0,95786.0,0.12648659]
[1739871413432,2.5867183,95787.0,95786.0,0.00138659]
[1739871413634,6.2644163,95787.0,95786.0,0.00138659]
[1739871413838,6.9336943,95787.0,95786.0,0.00038659]
[1739871414065,5.2651393,95787.0,95786.0,0.00038659]
[1739871414443,5.2661393,95787.0,95786.0,0.00038659]
[1739871414811,5.2681393,95787.0,95786.0,0.00038659]
[1739871415018,5.2641393,95787.0,95786.0,0.00038659]
[1739871415190,5.2701393,95787.0,95786.0,0.00138659]
[1739871415400,5.2741393,95787.0,95786.0,0.00138659]
[1739871416162,3.9856973,95787.0,95786.0,0.00138659]
[1739871416377,0.1667673,95787.0,95786.0,0.00138659]
[1739871416655,6.3018023,95787.0,95786.0,0.00138659]
[1739871416857,5.8591099,95787.0,95786.0,0.00138659]
[1739871417058,5.8531099,95787.0,95786.0,0.00038659]
[1739871417455,5.4142529,95787.0,95786.0,0.00038659]
[1739871417659,4.3251719,95787.0,95786.0,0.00038659]
[1739871417860,4.1785599,95787.0,95786.0,0.00038659]
[1739871418381,4.1845599,95787.0,95786.0,0.00138659]
[1739871418587,4.1805599,95787.0,95786.0,0.00138659]
[1739871418909,4.1775599,95787.0,95786.0,0.00038659]
[1739871419121,4.1825599,95787.0,95786.0,0.00038659]
[1739871420184,4.1795599,95787.0,95786.0,0.00038659]
[1739871420991,4.0833029,95787.0,95786.0,0.00038659]
[1739871421195,2.0950199,95787.0,95786.0,0.07548659]
[1739871421396,0.8474089,95787.0,95786.0,0.07648659]
[1739871421631,0.7108549,95787.0,95786.0,0.07648659]
[1739871421981,0.5225289,95787.0,95786.0,0.07548659]
[1739871422112,0.3974589,95787.0,95786.0,0.07548659]
[1739871422516,0.1567673,95787.0,95786.0,0.07548659]
[1739871422922,0.1597673,95787.0,95786.0,0.07548659]
[1739871423135,0.1597673,95787.0,95786.0,0.04409183]
[1739871423342,0.1597673,95787.0,95777.0,0.01430524]
[1739871423343,0.156612,95778.0,95777.0,0.01430524]
[1739871423540,0.0031703,95787.0,95777.0,0.01430524]
[1739871423888,0.208801,95785.0,95768.0,0.3285]
[1739871424089,0.156607,95782.0,95772.0,0.10250365]
[1739871424215,0.208798,95786.0,95772.0,0.10250365]
[1739871424423,0.156606,95782.0,95777.0,0.001]
[1739871424622,0.0021703,95787.0,95772.0,0.10250365]
[1739871424827,0.156606,95782.0,95772.0,0.10250365]
[1739871425030,0.0001703,95787.0,95772.0,0.10250365]
[1739871425031,0.001,95785.0,95772.0,0.10250365]
[1739871425278,0.82019,95784.0,95772.0,0.10250365]
[1739871425451,0.156605,95783.0,95772.0,0.10250365]
[1739871425659,0.156605,95782.0,95777.0,0.001]
[1739871425855,0.208798,95786.0,95777.0,0.001]
[1739871426079,1.167654,95786.0,95777.0,0.001]
[1739871426284,0.156605,95782.0,95778.0,0.0756]
[1739871426698,0.0001703,95787.0,95779.0,0.0492]
[1739871426914,0.889738,95786.0,95779.0,0.0492]
[1739871427105,0.17468,95785.0,95779.0,0.0492]
[1739871427309,0.697549,95785.0,95779.0,0.0492]
[1739871427480,0.156605,95782.0,95779.0,0.0492]
[1739871427681,0.0001703,95787.0,95779.0,0.0492]
[1739871427999,0.157605,95783.0,95779.0,0.0492]
[1739871428212,0.001,95783.0,95779.0,0.0492]
[1739871428388,0.156605,95782.0,95779.0,0.0492]
[1739871429236,0.156608,95780.0,95779.0,0.0492]
[1739871429393,0.208807,95783.0,95779.0,0.0492]
[1739871429995,0.156608,95780.0,95779.0,0.0492]
[1739871430436,0.156608,95780.0,95779.0,0.0502]
[1739871430810,0.208807,95783.0,95779.0,0.0492]
[1739871430988,0.156608,95780.0,95779.0,0.0502]
[1739871431286,0.156608,95780.0,95779.0,0.0492]
[1739871431483,0.0021703,95787.0,95779.0,0.0502]
[1739871431720,0.18642,95786.0,95779.0,0.0502]
[1739871431902,0.0001703,95787.0,95782.0,0.0824]
[1739871432827,0.208775,95797.0,95782.0,0.0824]
[1739871433035,0.15659,95791.0,95782.0,0.0824]
[1739871433273,0.15659,95792.0,95782.0,0.0824]
[1739871433475,0.001,95787.0,95782.0,0.0824]
[1739871433630,0.01249153,95792.0,95782.0,0.0824]
[1739871433840,0.156592,95791.0,95782.0,0.0824]
[1739871434071,0.15659,95792.0,95782.0,0.0824]
[1739871434391,0.002,95787.0,95782.0,0.0824]
[1739871434531,0.156591,95791.0,95782.0,0.0824]
[1739871434731,0.001,95787.0,95782.0,0.0824]
[1739871434936,0.156592,95790.0,95782.0,0.0824]
[1739871435340,0.4,95992.0,95788.0,0.208793]
[1739871435341,0.01657876,95792.0,95788.0,0.208793]
[1739871435542,0.01257876,95792.0,95789.0,0.1301]
[1739871435744,0.01257876,95792.0,95789.0,0.286693]
[1739871435951,0.004,95791.0,95789.0,0.1301]
[1739871436158,0.156579,95799.0,95789.0,0.1301]
[1739871436368,0.002,95792.0,95789.0,0.1301]
[1739871436756,0.02122131,95807.0,95790.0,0.10250365]
[1739871436994,0.156575,95801.0,95790.0,0.11979777]
[1739871437414,0.208762,95803.0,95790.0,0.11979777]
[1739871437415,0.156576,95800.0,95790.0,0.11979777]
[1739871437679,0.156572,95802.0,95790.0,0.11979777]
[1739871437906,0.156572,95802.0,95790.0,0.27638977]
[1739871438118,0.156573,95802.0,95791.0,0.09467958]
[1739871438335,0.156573,95802.0,95792.0,0.10250365]
[1739871438515,0.001,95801.0,95792.0,0.10250365]
[1739871438927,0.156573,95802.0,95792.0,0.10250365]
[1739871439145,0.156573,95802.0,95792.0,0.16952105]
[1739871439351,0.158573,95802.0,95792.0,0.16952105]
[1739871439555,0.002,95802.0,95792.0,0.10250365]
[1739871440367,0.158573,95802.0,95792.0,0.10250365]
[1739871440578,0.156573,95802.0,95792.0,0.10250365]
[1739871440778,0.001,95801.0,95792.0,0.10250365]
[1739871441408,0.156568,95805.0,95793.0,0.156587]
[1739871441620,0.001,95802.0,95793.0,0.0823]
[1739871441824,0.001,95802.0,95794.0,0.208781]
[1739871442031,0.001,95802.0,95793.0,0.0823]
[1739871442613,0.0649613,95810.0,95794.0,0.156584]
[1739871442816,0.15657,95804.0,95793.0,0.238887]
[1739871443031,0.20875,95808.0,95793.0,0.0823]
[1739871443394,0.156572,95803.0,95793.0,0.0823]
[1739871443600,0.156573,95802.0,95793.0,0.0823]
[1739871443807,0.156574,95802.0,95793.0,0.0823]
[1739871443999,0.001,95801.0,95793.0,0.0823]
[1739871444433,0.156571,95803.0,95793.0,0.0823]
[1739871444634,0.002,95803.0,95793.0,0.238886]
[1739871444838,0.002,95803.0,95793.0,0.0823]
[1739871445137,0.158572,95803.0,95793.0,0.0823]
[1739871445334,0.156572,95803.0,95793.0,0.0823]
[1739871445680,0.156569,95804.0,95793.0,0.238887]
[1739871445916,0.156566,95806.0,95793.0,0.0823]
[1739871446123,0.001,95801.0,95793.0,0.0823]
[1739871446326,0.001,95801.0,95795.0,0.0821]
[1739871446507,0.001,95801.0,95800.0,0.0821]
[1739871446719,0.001,95801.0,95800.0,0.1302]
[1739871447343,0.156564,95808.0,95800.0,0.1302]
[1739871447550,0.002,95804.0,95800.0,0.1302]
[1739871448142,0.15177559,95810.0,95800.0,0.1302]
[1739871448341,0.001,95801.0,95800.0,0.1302]
[1739871448915,0.156566,95806.0,95800.0,0.1302]
[1739871449119,0.002,95804.0,95800.0,0.1302]
[1739871450360,0.001,95804.0,95800.0,0.1302]
[1739871450767,0.001,95801.0,95800.0,0.1302]
[1739871451187,0.001,95804.0,95800.0,0.1302]
[1739871451393,0.003,95804.0,95800.0,0.1302]
[1739871451591,0.159569,95804.0,95800.0,0.1302]
[1739871451836,0.003,95804.0,95800.0,0.1302]
[1739871451993,0.001,95804.0,95800.0,0.1302]
[1739871452401,0.001,95801.0,95800.0,0.1302]
[1739871453606,0.17739619,95805.0,95800.0,0.1302]
[1739871453810,0.002,95804.0,95800.0,0.1302]
[1739871454349,0.02082819,95805.0,95800.0,0.1302]
[1739871454673,0.001,95801.0,95792.0,0.0827]
[1739871454881,0.156577,95800.0,95793.0,0.04574406]
[1739871455093,0.156576,95800.0,95793.0,0.04574406]
[1739871455295,0.02182819,95805.0,95792.0,0.18520365]
[1739871455497,0.156576,95800.0,95792.0,0.18520365]
[1739871457052,0.001,95800.0,95792.0,0.18520365]
[1739871457433,0.156574,95801.0,95792.0,0.18520365]
[1739871457842,0.156587,95793.0,95792.0,0.0827]
[1739871458044,0.156589,95792.0,95791.0,0.0003406]
[1739871458383,1.123704,95792.0,95791.0,0.0003406]
[1739871458516,1.096545,95792.0,95791.0,0.0003406]
[1739871459377,1.096545,95792.0,95791.0,0.0013406]
[1739871460518,0.159589,95792.0,95791.0,0.0003406]
[1739871460723,5.954178,95792.0,95791.0,0.0003406]
[1739871460980,5.987245,95792.0,95791.0,0.0003406]
[1739871461288,5.721837,95792.0,95791.0,0.0003406]
[1739871461461,5.620784,95792.0,95791.0,0.0003406]
[1739871461849,5.274083,95792.0,95791.0,0.0003406]
[1739871462050,5.276083,95792.0,95791.0,0.0003406]
[1739871462269,4.235489,95792.0,95791.0,0.0003406]
[1739871462469,4.143929,95792.0,95791.0,0.0003406]
[1739871462671,4.140929,95792.0,95791.0,0.0003406]
[1739871462865,1.675591,95792.0,95791.0,0.0003406]
[1739871463092,1.446484,95792.0,95791.0,0.0003406]
[1739871463451,1.443484,95792.0,95791.0,0.0003406]
[1739871463652,1.441484,95792.0,95791.0,0.0003406]
[1739871463859,0.12449,95792.0,95791.0,0.0003406]
[1739871464472,0.281079,95792.0,95791.0,0.0003406]
[1739871464686,0.574341,95792.0,95791.0,0.0003406]
[1739871464880,1.803778,95792.0,95791.0,0.0003406]
[1739871465088,2.182594,95792.0,95791.0,0.0003406]
[1739871465282,2.281879,95792.0,95791.0,0.0003406]
[1739871465581,2.38438265,95792.0,95791.0,0.0003406]
[1739871465782,2.53538265,95792.0,95791.0,0.0003406]
[1739871466198,2.53738265,95792.0,95791.0,0.0003406]
[1739871466811,2.53538265,95792.0,95791.0,0.0003406]
[1739871467092,2.53738265,95792.0,95791.0,0.0003406]
[1739871467243,2.53838265,95792.0,95791.0,0.0003406]
[1739871467455,2.53738265,95792.0,95791.0,0.0003406]
[1739871467879,2.53938265,95792.0,95791.0,0.0003406]
[1739871470921,2.286879,95792.0,95791.0,0.0003406]
[1739871471914,1.684436,95792.0,95791.0,0.0003406]
[1739871472744,1.681436,95792.0,95791.0,0.0003406]
[1739871473127,1.684436,95792.0,95791.0,0.0003406]
[1739871473332,1.252181,95792.0,95791.0,0.0003406]
[1739871473530,0.161589,95792.0,95791.0,0.0003406]
[1739871473681,3.899024,95792.0,95791.0,0.0003406]
[1739871473888,3.789726,95792.0,95791.0,0.0003406]
[1739871474737,3.791726,95792.0,95791.0,0.0003406]
[1739871475139,3.789726,95792.0,95791.0,0.0003406]
[1739871475335,3.788726,95792.0,95791.0,0.0003406]
[1739871475682,3.043507,95792.0,95791.0,0.0003406]
[1739871475898,2.931309,95792.0,95791.0,0.0003406]
[1739871476108,2.928309,95792.0,95791.0,0.0003406]
[1739871476234,2.889752,95792.0,95791.0,0.0003406]
[1739871476762,2.884752,95792.0,95791.0,0.0003406]
[1739871477193,2.885752,95792.0,95791.0,0.0003406]
[1739871477899,2.887752,95792.0,95791.0,0.0003406]
[1739871478320,2.888752,95792.0,95791.0,0.0003406]
[1739871479121,2.885752,95792.0,95791.0,0.0003406]
[1739871479261,2.861165,95792.0,95791.0,0.0003406]
[1739871479476,2.864165,95792.0,95791.0,0.0003406]
[1739871480471,2.832241,95792.0,95791.0,0.0003406]
[1739871481525,2.831241,95792.0,95791.0,0.0003406]
[1739871481798,2.832241,95792.0,95791.0,0.0003406]
[1739871482254,2.819429,95792.0,95791.0,0.0003406]
[1739871482474,2.785326,95792.0,95791.0,0.0003406]
[1739871482897,2.782326,95792.0,95791.0,0.0003406]
[1739871483100,2.784326,95792.0,95791.0,0.0003406]
[1739871483688,2.781326,95792.0,95791.0,0.0003406]
[1739871483888,2.785326,95792.0,95791.0,0.0003406]
[1739871484333,2.784326,95792.0,95791.0,0.0003406]
[1739871484666,2.785326,95792.0,95791.0,0.0003406]
[1739871485058,2.784326,95792.0,95791.0,0.0003406]
[1739871485446,2.781326,95792.0,95791.0,0.0003406]
[1739871485646,2.784326,95792.0,95791.0,0.0003406]
[1739871486270,2.781326,95792.0,95791.0,0.0003406]
[1739871486483,3.01052965,95792.0,95791.0,0.0003406]
[1739871486891,2.85294065,95792.0,95791.0,0.0003406]
[1739871487149,2.85094065,95792.0,95791.0,0.0003406]
[1739871487347,3.00952965,95792.0,95791.0,0.0003406]
[1739871487752,3.01052965,95792.0,95791.0,0.0003406]
[1739871487954,3.00952965,95792.0,95791.0,0.0003406]
[1739871488308,3.01452965,95792.0,95791.0,0.0003406]
[1739871488725,3.01152965,95792.0,95791.0,0.0003406]
[1739871489122,2.93652965,95792.0,95791.0,0.0003406]
[1739871489323,2.73567765,95792.0,95791.0,0.0003406]
[1739871489793,2.73367765,95792.0,95791.0,0.0003406]
[1739871489998,2.73467765,95792.0,95791.0,0.0003406]
[1739871490346,2.73967765,95792.0,95791.0,0.0003406]
[1739871490551,2.72867765,95792.0,95791.0,0.0003406]
[1739871490951,2.73367765,95792.0,95791.0,0.0003406]
[1739871491573,2.56001065,95792.0,95791.0,0.0003406]
[1739871491950,2.56601065,95792.0,95791.0,0.0003406]
[1739871493917,1.922684,95792.0,95791.0,0.0003406]
[1739871494322,1.6329524,95792.0,95791.0,0.0003406]
[1739871494711,1.6279524,95792.0,95791.0,0.0003406]
[1739871495071,1.6269524,95792.0,95791.0,0.0003406]
[1739871495276,1.6329524,95792.0,95791.0,0.0003406]
[1739871496647,1.635961,95792.0,95791.0,0.0003406]
[1739871496855,0.768315,95792.0,95791.0,0.0003406]
[1739871499307,0.762315,95792.0,95791.0,0.0003406]
[1739871499511,0.757315,95792.0,95791.0,0.0003406]
[1739871499731,0.763315,95792.0,95791.0,0.0003406]
[1739871499938,0.768315,95792.0,95791.0,0.0003406]
[1739871500277,0.51734044,95792.0,95791.0,0.0003406]
[1739871500622,0.51234044,95792.0,95791.0,0.0003406]
[1739871501073,0.51734044,95792.0,95791.0,0.0003406]
[1739871501227,0.50634044,95792.0,95791.0,0.0003406]
[1739871501424,0.51234044,95792.0,95791.0,0.0003406]
[1739871501629,0.51734044,95792.0,95791.0,0.0003406]
[1739871501844,0.51734044,95792.0,95781.0,0.0452]
[1739871501845,0.35492174,95792.0,95781.0,0.00065688]
[1739871502120,0.156605,95782.0,95781.0,0.00065688]
[1739871502289,1.360868,95782.0,95781.0,0.00065688]
[1739871502582,1.392252,95782.0,95781.0,0.00065688]
[1739871502755,1.360868,95782.0,95781.0,0.00065688]
[1739871502956,1.204263,95782.0,95780.0,0.02681639]
[1739871503159,1.159976,95781.0,95780.0,0.02681639]
[1739871503572,0.001,95782.0,95780.0,0.02681639]
[1739871503988,0.208771,95799.0,95780.0,0.02681639]
[1739871504199,3.254638,95791.0,95780.0,0.02681639]
[1739871504398,0.001,95781.0,95780.0,0.02681639]
[1739871504603,0.156602,95785.0,95780.0,0.02681639]
[1739871504815,0.25302,95784.0,95780.0,0.02681639]
[1739871505041,0.002,95782.0,95765.0,0.30668247]
[1739871505255,0.002,95782.0,95771.0,4.409e-05]
[1739871505634,0.208797,95787.0,95771.0,4.409e-05]
[1739871505856,0.002,95785.0,95771.0,4.409e-05]
[1739871506080,0.258525,95784.0,95772.0,0.0494]
[1739871506335,0.258525,95784.0,95772.0,0.05735479]
[1739871506510,0.415128,95784.0,95772.0,0.05735479]
[1739871506839,0.208778,95796.0,95773.0,0.10250365]
[1739871507048,0.001,95782.0,95774.0,0.09990795]
[1739871507342,0.001,95782.0,95775.0,0.14930365]
[1739871507747,0.001,95782.0,95775.0,0.15725844]
[1739871508155,0.001,95782.0,95776.0,0.0827]
[1739871508308,0.001,95782.0,95777.0,0.10250365]
[1739871508512,0.001,95782.0,95778.0,0.0777]
[1739871508715,0.0001,95785.0,95779.0,0.10250365]
[1739871509129,0.001,95784.0,95779.0,0.10250365]
[1739871509633,0.0001,95785.0,95779.0,0.10250365]
[1739871510277,0.0001,95785.0,95779.0,0.10350365]
[1739871510633,0.0001,95785.0,95779.0,0.10250365]
[1739871510841,0.0001,95785.0,95779.0,0.10350365]
[1739871511017,0.0001,95785.0,95780.0,0.03119214]
[1739871511232,0.0001,95785.0,95781.0,0.10250365]
[1739871512240,0.0001,95785.0,95782.0,0.0826]
[1739871512429,0.0001,95785.0,95782.0,0.18510365]
[1739871513479,0.0001,95785.0,95782.0,0.18710365]
[1739871513679,0.0001,95785.0,95782.0,0.24119632]
[1739871517064,0.0001,95785.0,95782.0,0.24019632]
[1739871517626,0.0001,95785.0,95782.0,0.24119632]
[1739871518205,0.13871014,95784.0,95782.0,0.24119632]
[1739871518527,0.13871014,95784.0,95782.0,0.24019632]
[1739871519177,0.13871014,95784.0,95782.0,0.24319632]
[1739871519395,0.13871014,95784.0,95782.0,0.24219632]
[1739871519815,0.13871014,95784.0,95782.0,0.24519632]
[1739871520224,0.13871014,95784.0,95783.0,0.05522194]